bitfinex-derivatives/quotes_BNBF0:USTF0_20241230
["timestamp","ask_amount","ask_price","bid_price","bid_amount"]
[1735577213036,0.91940324,695.16,694.22,1.07071673]
[1735577213233,0.91940324,695.15,694.22,1.07071673]
[1735577213738,0.91940324,695.14,694.22,1.07071673]
[1735577214135,0.91940324,695.13,694.22,1.07071673]
[1735577214630,0.91940324,695.12,694.26,1.07071673]
[1735577215235,1.07172975,695.94,694.26,1.07071673]
[1735577215436,1.50277993,695.3,694.26,1.07071673]
[1735577215741,0.91923098,695.29,694.26,1.07071673]
[1735577216038,0.91923098,695.29,693.53,2.18604666]
[1735577216039,0.91923098,695.29,694.51,1.07071673]
[1735577216237,0.91923098,695.28,694.51,1.07071673]
[1735577216533,0.91923098,695.27,694.51,1.07071673]
[1735577216737,1.07172975,695.95,694.51,1.07071673]
[1735577216738,0.91923098,695.26,694.51,1.07071673]
[1735577216935,0.91923098,695.25,694.51,1.07071673]
[1735577217140,0.91923098,695.25,694.48,1.07071673]
[1735577217334,0.91923098,695.24,694.48,1.07071673]
[1735577217540,0.91923098,695.23,694.48,1.07071673]
[1735577217840,0.91923098,695.22,694.48,1.07071673]
[1735577218037,0.91923098,695.21,694.48,1.07071673]
[1735577218440,0.91923098,695.2,694.48,1.07071673]
[1735577218639,0.91923098,695.19,694.48,1.07071673]
[1735577219136,0.91923098,695.18,694.48,1.07071673]
[1735577219541,0.91923098,695.17,694.48,1.07071673]
[1735577219742,0.91923098,695.17,694.26,1.07071673]
[1735577219939,0.91923098,695.16,694.26,1.07071673]
[1735577220140,0.91923098,695.15,694.26,1.07071673]
[1735577220440,0.91923098,695.14,694.26,1.07071673]
[1735577220839,0.91923098,695.13,694.26,1.07071673]
[1735577221039,0.91923098,695.12,694.26,1.07071673]
[1735577221235,0.91923098,695.12,693.46,2.18604666]
[1735577221236,0.91923098,695.12,694.21,1.07071673]
[1735577221443,0.91923098,695.11,694.21,1.07071673]
[1735577221741,0.91923098,695.1,694.21,1.07071673]
[1735577221940,0.91923098,695.09,694.21,1.07071673]
[1735577222341,0.91923098,695.08,694.21,1.07071673]
[1735577222640,0.91923098,695.07,694.21,1.07071673]
[1735577222844,0.91923098,695.07,694.15,1.07071673]
[1735577223042,0.91923098,695.06,694.15,1.07071673]
[1735577223341,0.91923098,695.05,694.15,1.07071673]
[1735577223843,0.91923098,695.04,694.15,1.07071673]
[1735577224042,0.91923098,695.03,694.15,1.07071673]
[1735577224344,0.91923098,695.02,694.18,1.07071673]
[1735577224541,0.91923098,695.01,694.18,1.07071673]
[1735577225041,0.91923098,695.0,694.18,1.07071673]
[1735577225344,0.91923098,694.99,694.38,1.07071673]
[1735577225637,0.91923098,694.98,694.38,1.07071673]
[1735577226034,0.91923098,694.97,694.38,1.07071673]
[1735577226236,0.91923098,694.97,694.35,1.07071673]
[1735577226435,0.91923098,694.96,694.35,1.07071673]
[1735577226737,0.91923098,694.95,694.35,1.07071673]
[1735577227145,2.42248695,694.94,694.26,1.07071673]
[1735577227538,0.91923098,694.93,694.26,1.07071673]
[1735577227738,1.50325597,694.94,694.26,1.07071673]
[1735577227739,0.91923098,694.92,694.26,1.07071673]
[1735577228141,0.91923098,694.91,694.26,1.07071673]
[1735577228341,0.91923098,694.91,694.07,1.07071673]
[1735577228342,0.91923098,694.91,694.19,1.07071673]
[1735577228538,0.91923098,694.9,694.19,1.07071673]
[1735577229042,0.91923098,694.89,694.19,1.07071673]
[1735577229443,0.91923098,694.88,694.19,1.07071673]
[1735577229744,0.91923098,694.87,694.16,1.07071673]
[1735577230244,0.91923098,694.93,694.16,1.07071673]
[1735577230444,1.07172975,695.55,694.16,1.07071673]
[1735577230643,1.50317481,695.15,694.16,1.07071673]
[1735577231044,0.92151096,695.54,694.16,1.07071673]
[1735577231241,0.92151096,695.14,694.16,1.07071673]
[1735577231447,0.92151096,695.13,694.33,1.07071673]
[1735577231839,0.92151096,695.12,694.33,1.07071673]
[1735577232244,0.92151096,695.11,694.33,1.07071673]
[1735577232444,0.92151096,695.11,694.42,1.07071673]
[1735577232645,1.07172975,695.77,694.42,1.07071673]
[1735577232646,0.92151096,695.1,694.42,1.07071673]
[1735577232950,0.92151096,695.31,694.42,1.07071673]
[1735577233347,0.92151096,695.3,694.42,1.07071673]
[1735577233745,0.92151096,695.29,694.58,1.07071673]
[1735577234150,0.92151096,695.28,694.58,1.07071673]
[1735577234355,0.92151096,695.27,694.58,1.07071673]
[1735577234655,0.92151096,695.26,694.58,1.07071673]
[1735577234852,0.92151096,695.26,693.99,2.18604666]
[1735577234853,0.92151096,695.26,694.39,1.07071673]
[1735577235056,0.92151096,695.25,694.39,1.07071673]
[1735577235356,0.92151096,695.24,694.39,1.07071673]
[1735577235755,0.92151096,695.23,694.39,1.07071673]
[1735577235950,0.92151096,695.22,694.39,1.07071673]
[1735577236156,0.92151096,695.22,694.24,1.07071673]
[1735577236353,0.92151096,695.21,694.24,1.07071673]
[1735577236753,0.92151096,695.2,694.24,1.07071673]
[1735577236958,0.92151096,695.19,694.24,1.07071673]
[1735577237160,0.92151096,695.19,694.34,1.07071673]
[1735577237359,0.92151096,695.18,694.34,1.07071673]
[1735577237556,0.92151096,695.17,694.34,1.07071673]
[1735577237963,1.50280697,695.32,694.34,1.07071673]
[1735577238158,0.92346808,695.16,694.34,1.07071673]
[1735577238361,0.92346808,695.15,694.31,1.07071673]
[1735577238560,0.92346808,695.14,694.31,1.07071673]
[1735577238854,0.92346808,695.13,694.31,1.07071673]
[1735577239265,0.92346808,695.12,694.25,1.07071673]
[1735577239465,0.92346808,695.11,694.25,1.07071673]
[1735577239860,0.92346808,695.1,694.25,1.07071673]
[1735577240162,0.92346808,695.1,694.17,1.07071673]
[1735577240363,0.92346808,695.09,694.17,1.07071673]
[1735577240763,0.92346808,695.08,694.17,1.07071673]
[1735577241167,0.92346808,695.07,694.11,1.07071673]
[1735577241363,1.50280697,695.32,694.11,1.07071673]
[1735577241364,0.92346808,695.06,694.11,1.07071673]
[1735577241763,0.92346808,695.05,694.11,1.07071673]
[1735577242159,0.92346808,695.04,694.05,1.07071673]
[1735577242463,0.92346808,695.03,694.05,1.07071673]
[1735577242861,1.50330468,695.02,694.05,1.07071673]
[1735577243058,2.42677276,695.02,694.05,1.07071673]
[1735577243262,0.92346808,695.01,694.05,1.07071673]
[1735577243459,0.92346808,695.01,693.3,2.18604666]
[1735577243460,0.92346808,695.01,694.16,1.07071673]
[1735577243761,0.92346808,695.0,694.16,1.07071673]
[1735577243959,0.92346808,694.99,694.16,1.07071673]
[1735577244363,0.92346808,694.98,694.16,1.07071673]
[1735577244560,0.92346808,694.97,694.16,1.07071673]
[1735577244764,0.92346808,694.97,694.19,1.07071673]
[1735577244963,0.92346808,694.96,694.19,1.07071673]
[1735577245160,0.92346808,694.95,694.19,1.07071673]
[1735577245662,0.92346808,694.94,694.3,1.07071673]
[1735577246066,0.92346808,694.93,694.3,1.07071673]
[1735577246465,0.92346808,694.92,694.3,1.07071673]
[1735577246867,0.92346808,694.92,693.78,2.18604666]
[1735577246868,0.92346808,694.91,694.38,1.07071673]
[1735577247060,0.92346808,694.9,694.38,1.07071673]
[1735577247260,0.92346808,694.89,694.38,1.07071673]
[1735577247666,0.92346808,694.88,694.38,1.07071673]
[1735577247862,0.92346808,694.87,694.38,1.07071673]
[1735577248267,0.92346808,694.86,694.38,1.07071673]
[1735577248660,0.92346808,694.85,694.38,1.07071673]
[1735577249065,0.92346808,694.84,694.38,1.07071673]
[1735577249370,0.92346808,694.83,694.14,1.07071673]
[1735577249769,0.92346808,694.82,694.14,1.07071673]
[1735577249967,0.92346808,694.81,694.14,1.07071673]
[1735577250267,0.92346808,694.8,694.14,1.07071673]
[1735577250465,0.92346808,694.79,694.14,1.07071673]
[1735577250670,0.92346808,694.79,694.13,1.07071673]
[1735577250870,0.92346808,694.78,694.13,1.07071673]
[1735577251070,0.92346808,694.77,694.13,1.07071673]
[1735577251468,0.92346808,694.76,694.13,1.07071673]
[1735577251773,0.92346808,694.76,693.45,2.18604666]
[1735577251774,0.92346808,694.75,694.17,1.07071673]
[1735577251965,0.92346808,694.74,694.17,1.07071673]
[1735577252272,0.92346808,694.73,694.17,1.07071673]
[1735577252674,1.50313693,695.09,694.17,1.07071673]
[1735577253171,0.92305869,695.08,694.17,1.07071673]
[1735577253373,0.92305869,695.07,694.17,1.07071673]
[1735577253674,0.92305869,695.06,694.17,1.07071673]
[1735577254275,0.92305869,695.05,694.24,1.07071673]
[1735577254475,0.92305869,695.04,694.24,1.07071673]
[1735577254869,0.92305869,695.03,694.24,1.07071673]
[1735577255174,0.92305869,695.02,694.24,1.07071673]
[1735577255570,0.92305869,695.01,694.24,1.07071673]
[1735577255775,0.92305869,695.0,694.24,1.07071673]
[1735577255969,0.92305869,694.99,694.24,1.07071673]
[1735577256373,0.92305869,694.98,694.24,1.07071673]
[1735577256574,0.92305869,694.97,694.24,1.07071673]
[1735577256875,0.92305869,694.97,693.51,2.18604666]
[1735577256876,0.92305869,694.97,694.26,1.07071673]
[1735577257070,0.92305869,694.96,694.26,1.07071673]
[1735577257275,0.92305869,694.95,694.26,1.07071673]
[1735577257676,0.92305869,694.94,694.28,1.07071673]
[1735577258175,0.92305869,694.93,694.28,1.07071673]
[1735577258376,0.92305869,694.92,694.28,1.07071673]
[1735577258775,0.92305869,694.91,694.31,1.07071673]
[1735577259171,0.92305869,694.9,694.31,1.07071673]
[1735577259574,0.92305869,694.89,694.31,1.07071673]
[1735577259772,0.92305869,694.88,694.31,1.07071673]
[1735577260177,0.92305869,694.87,694.31,1.07071673]
[1735577260375,0.92305869,694.86,694.31,1.07071673]
[1735577260777,0.92305869,694.85,694.31,1.07071673]
[1735577261377,0.92305869,694.84,694.31,1.07071673]
[1735577261779,0.92305869,694.83,694.31,1.07071673]
[1735577261979,0.92305869,694.83,694.3,1.07071673]
[1735577262383,1.50314234,695.09,694.3,1.07071673]
[1735577262779,0.92454688,695.08,694.3,1.07071673]
[1735577263175,0.92454688,695.07,694.3,1.07071673]
[1735577263383,0.92454688,695.06,694.35,1.07071673]
[1735577263682,0.92454688,695.05,694.35,1.07071673]
[1735577263982,0.92454688,695.04,694.35,1.07071673]
[1735577264282,0.92454688,695.03,694.35,1.07071673]
[1735577264580,0.92454688,695.03,694.37,1.07071673]
[1735577264784,0.92454688,695.02,694.37,1.07071673]
[1735577264983,0.92454688,695.01,694.37,1.07071673]
[1735577265383,0.92454688,695.0,694.37,1.07071673]
[1735577265886,0.92454688,694.99,694.37,1.07071673]
[1735577266383,0.92454688,694.98,694.37,1.07071673]
[1735577266781,0.92454688,694.98,693.64,2.18604666]
[1735577266782,0.92454688,694.97,694.34,1.07071673]
[1735577266985,0.92454688,694.96,694.34,1.07071673]
[1735577267383,0.92454688,694.95,694.34,1.07071673]
[1735577267786,0.92454688,694.94,694.34,1.07071673]
[1735577267987,0.92454688,694.93,694.38,1.07071673]
[1735577268387,0.92454688,694.92,694.38,1.07071673]
[1735577268687,0.92454688,694.91,694.38,1.07071673]
[1735577268887,0.92454688,694.9,694.38,1.07071673]
[1735577269188,0.92454688,694.89,694.38,1.07071673]
[1735577269389,0.92454688,694.89,694.47,1.07071673]
[1735577269689,1.50314234,695.09,694.47,1.07071673]
[1735577270090,1.07172975,695.71,694.47,1.07071673]
[1735577270283,0.26482403,695.7,694.47,1.07071673]
[1735577270483,1.50274748,695.24,694.47,1.07071673]
[1735577270685,1.07172975,695.71,694.47,1.07071673]
[1735577270883,1.50266637,695.24,694.47,1.07071673]
[1735577271086,1.50266637,695.24,694.46,1.07071673]
[1735577271389,0.92469785,695.23,694.46,1.07071673]
[1735577271790,0.92469785,695.22,694.46,1.07071673]
[1735577271991,0.92469785,695.21,694.45,1.07071673]
[1735577272190,0.92469785,695.2,694.45,1.07071673]
[1735577272387,2.42753186,695.2,694.45,1.07071673]
[1735577272689,0.92469785,695.19,694.45,1.07071673]
[1735577273087,0.92469785,695.18,694.4,1.07071673]
[1735577273287,0.92469785,695.17,694.4,1.07071673]
[1735577273690,0.92469785,695.16,694.4,1.07071673]
[1735577273986,0.92469785,695.15,694.4,1.07071673]
[1735577274187,0.92469785,695.15,693.7,2.18604666]
[1735577274188,0.92469785,695.14,694.47,1.07071673]
[1735577274384,0.92469785,695.13,694.47,1.07071673]
[1735577274688,0.92469785,695.12,694.47,1.07071673]
[1735577275089,0.92469785,695.11,694.47,1.07071673]
[1735577275283,0.92469785,695.1,694.47,1.07071673]
[1735577275485,0.92469785,695.1,694.44,1.07071673]
[1735577275792,0.92469785,695.09,694.44,1.07071673]
[1735577276290,0.92469785,695.08,694.44,1.07071673]
[1735577276590,0.92469785,695.07,694.44,1.07071673]
[1735577276788,0.92469785,695.07,694.48,1.07071673]
[1735577276993,0.92469785,695.06,694.48,1.07071673]
[1735577277290,0.92469785,695.05,694.48,1.07071673]
[1735577277794,0.92469785,695.04,694.48,1.07071673]
[1735577277991,0.92469785,695.04,694.05,1.28486007]
[1735577277992,0.92469785,695.04,694.5,1.07071673]
[1735577278190,0.92469785,695.03,694.5,1.07071673]
[1735577278492,0.92469785,695.02,694.5,1.07071673]
[1735577278692,0.92469785,695.01,694.5,1.07071673]
[1735577278992,0.92469785,695.0,694.5,1.07071673]
[1735577279194,0.92469785,694.99,694.5,1.07071673]
[1735577279495,0.92469785,694.98,694.5,1.07071673]
[1735577279795,0.92469785,694.97,694.5,1.07071673]
[1735577280089,0.92469785,694.97,693.96,2.18604666]
[1735577280090,0.92469785,694.96,694.52,1.07071673]
[1735577280487,0.92469785,694.95,694.52,1.07071673]
[1735577280796,0.92469785,694.94,694.52,1.07071673]
[1735577280994,0.92469785,694.94,694.24,1.07071673]
[1735577280995,0.92469785,694.93,694.51,1.07071673]
[1735577281392,0.92469785,694.92,694.51,1.07071673]
[1735577281589,0.92469785,694.91,694.51,1.07071673]
[1735577281891,0.92469785,694.9,694.51,1.07071673]
[1735577282196,0.92469785,694.89,694.51,1.07071673]
[1735577282696,0.92469785,694.88,694.51,1.07071673]
[1735577282996,0.92469785,694.87,694.5,1.07071673]
[1735577283298,1.50300709,695.08,694.5,1.07071673]
[1735577283489,0.9244716,695.07,694.5,1.07071673]
[1735577283692,0.9244716,695.06,694.5,1.07071673]
[1735577283993,0.9244716,695.05,694.5,1.07071673]
[1735577284191,0.9244716,695.05,694.48,1.07071673]
[1735577284397,0.9244716,695.04,694.48,1.07071673]
[1735577284901,0.9244716,695.03,694.48,1.07071673]
[1735577285500,1.50277993,695.21,694.48,1.07071673]
[1735577285501,0.9244716,695.02,694.48,1.07071673]
[1735577285700,0.9244716,695.02,694.64,1.07071673]
[1735577286099,0.9244716,695.01,694.64,1.07071673]
[1735577286300,1.50277993,695.21,694.64,1.07071673]
[1735577286699,0.92458602,695.2,694.64,1.07071673]
[1735577287100,0.92458602,695.19,694.64,1.07071673]
[1735577287300,0.92458602,695.18,694.67,1.07071673]
[1735577287600,0.92458602,695.17,694.67,1.07071673]
[1735577287802,0.92458602,695.16,694.67,1.07071673]
[1735577288197,0.92458602,695.15,694.58,1.07071673]
[1735577288601,0.92458602,695.14,694.58,1.07071673]
[1735577288804,0.92458602,695.13,694.58,1.07071673]
[1735577289203,0.92458602,695.12,694.58,1.07071673]
[1735577289405,0.92458602,695.11,694.58,1.07071673]
[1735577289599,0.92458602,695.1,694.55,1.07071673]
[1735577290003,0.92458602,695.09,694.55,1.07071673]
[1735577290397,0.92458602,695.08,694.55,1.07071673]
[1735577290598,0.92458602,695.07,694.55,1.07071673]
[1735577290799,0.92458602,695.07,694.49,1.07071673]
[1735577290998,0.92458602,695.06,694.49,1.07071673]
[1735577291198,0.92458602,695.05,694.49,1.07071673]
[1735577291705,0.92458602,695.04,694.49,1.07071673]
[1735577292005,0.92458602,695.03,694.45,1.07071673]
[1735577292304,0.92458602,695.02,694.45,1.07071673]
[1735577292609,0.92458602,695.01,694.45,1.07071673]
[1735577292809,0.92458602,695.0,694.45,1.07071673]
[1735577293108,0.92458602,694.99,694.48,1.07071673]
[1735577293408,0.92458602,694.98,694.48,1.07071673]
[1735577293906,0.92458602,694.97,694.48,1.07071673]
[1735577294107,0.92458602,694.96,694.48,1.07071673]
[1735577294309,0.92458602,694.96,694.24,1.07071673]
[1735577294504,2.42771213,694.95,694.24,1.07071673]
[1735577294807,0.92458602,694.94,694.24,1.07071673]
[1735577295204,0.92458602,694.93,694.24,1.07071673]
[1735577295605,1.50312611,694.95,694.2,1.07071673]
[1735577295606,0.92458602,694.92,694.2,1.07071673]
[1735577295805,0.92458602,694.91,694.2,1.07071673]
[1735577296208,0.92458602,694.9,694.2,1.07071673]
[1735577296609,0.92458602,694.89,694.2,1.07071673]
[1735577296810,0.92458602,694.89,694.15,1.07071673]
[1735577297007,0.92458602,694.88,694.15,1.07071673]
[1735577297210,0.92458602,694.87,694.15,1.07071673]
[1735577297513,1.50312611,694.95,694.15,1.07071673]
[1735577297514,0.92458602,694.86,694.15,1.07071673]
[1735577297716,0.92458602,694.86,694.13,1.07071673]
[1735577297910,0.92458602,694.85,694.13,1.07071673]
[1735577298415,0.92458602,694.84,694.13,1.07071673]
[1735577298617,0.92458602,694.83,694.13,1.07071673]
[1735577299112,0.92458602,694.82,694.04,1.07071673]
[1735577299515,0.92458602,694.81,694.04,1.07071673]
[1735577299918,0.92458602,694.8,694.04,1.07071673]
[1735577300319,0.92458602,694.8,693.97,1.07071673]
[1735577300516,0.92458602,694.79,693.97,1.07071673]
[1735577300712,0.92458602,694.78,693.97,1.07071673]
[1735577301117,0.92458602,694.78,694.14,1.07071673]
[1735577301317,0.92458602,694.77,694.14,1.07071673]
[1735577301618,0.92458602,694.76,694.14,1.07071673]
[1735577301913,0.92458602,694.75,694.14,1.07071673]
[1735577302415,0.92458602,694.74,694.16,1.07071673]
[1735577302619,0.92458602,694.73,694.16,1.07071673]
[1735577303011,0.92458602,694.72,694.16,1.07071673]
[1735577303212,0.92458602,694.71,694.16,1.07071673]
[1735577303413,0.92458602,694.71,694.14,1.07071673]
[1735577303612,0.92458602,694.7,694.14,1.07071673]
[1735577303811,0.92458602,694.69,694.14,1.07071673]
[1735577304217,0.92458602,694.68,694.14,1.07071673]
[1735577304418,0.92458602,694.68,694.1,1.07071673]
[1735577304613,1.50312611,694.95,694.1,1.07071673]
[1735577304614,0.92458602,694.67,694.1,1.07071673]
[1735577304818,0.92458602,694.66,694.1,1.07071673]
[1735577305215,0.92458602,694.65,694.1,1.07071673]
[1735577305416,0.92458602,694.65,694.05,1.07071673]
[1735577305719,0.92458602,694.64,694.05,1.07071673]
[1735577306121,0.92458602,694.63,694.05,1.07071673]
[1735577306322,0.92458602,694.62,694.05,1.07071673]
[1735577306617,0.92458602,694.61,693.91,1.07071673]
[1735577307021,0.92458602,694.6,693.91,1.07071673]
[1735577307420,0.92458602,694.59,693.91,1.07071673]
[1735577307619,0.92458602,694.58,693.91,1.07071673]
[1735577307924,0.92458602,694.58,693.72,1.07071673]
[1735577308121,0.92458602,694.57,693.72,1.07071673]
[1735577308320,0.92458602,694.56,693.72,1.07071673]
[1735577308822,0.92458602,694.55,693.72,1.07071673]
[1735577309122,0.92458602,694.55,693.63,1.07071673]
[1735577309324,0.92458602,694.54,693.63,1.07071673]
[1735577309721,0.92458602,694.53,693.63,1.07071673]
[1735577309918,0.92458602,694.53,693.52,1.07071673]
[1735577310224,0.92458602,694.52,693.52,1.07071673]
[1735577310415,0.92458602,694.51,693.52,1.07071673]
[1735577310821,0.92458602,694.5,693.52,1.07071673]
[1735577311322,0.92458602,694.49,693.52,1.07071673]
[1735577311524,0.92458602,694.49,693.5,1.07071673]
[1735577311921,0.92458602,694.48,693.5,1.07071673]
[1735577312123,0.92458602,694.47,693.5,1.07071673]
[1735577312320,0.92458602,694.46,693.5,1.07071673]
[1735577312627,0.92458602,694.45,693.38,1.07071673]
[1735577312927,0.92458602,694.44,693.38,1.07071673]
[1735577313327,0.92458602,694.43,693.38,1.07071673]
[1735577313529,1.50368901,694.76,693.39,1.07071673]
[1735577313831,0.91807783,694.75,693.39,1.07071673]
[1735577314330,0.91807783,694.74,693.39,1.07071673]
[1735577314629,0.91807783,694.74,693.55,1.07071673]
[1735577314928,0.91807783,694.73,693.55,1.07071673]
[1735577315323,0.91807783,694.72,693.55,1.07071673]
[1735577315723,0.91807783,694.71,693.55,1.07071673]
[1735577315923,0.91807783,694.7,693.38,1.07071673]
[1735577316328,0.91807783,694.69,693.38,1.07071673]
[1735577316525,2.42244937,694.69,693.38,1.07071673]
[1735577316721,0.91807783,694.68,693.38,1.07071673]
[1735577316921,0.91807783,694.68,693.34,0.28845876]
[1735577317126,0.91807783,694.67,693.34,0.28845876]
[1735577317722,0.91807783,694.66,693.34,0.28845876]
[1735577317927,0.91807783,694.65,693.34,0.28845876]
[1735577318229,1.50437154,694.69,693.34,0.28845876]
[1735577318230,0.91807783,694.64,693.34,0.28845876]
[1735577318629,0.91807783,694.63,693.34,0.28845876]
[1735577319023,0.91807783,694.62,693.34,0.28845876]
[1735577319228,0.91807783,694.61,693.34,0.28845876]
[1735577319629,0.91807783,694.6,693.34,0.28845876]
[1735577320029,0.91807783,694.59,693.34,0.28845876]
[1735577320425,0.91807783,694.58,693.37,1.07071673]
[1735577320723,0.91807783,694.57,693.37,1.07071673]
[1735577320932,0.91807783,694.56,693.37,1.07071673]
[1735577321329,0.91807783,694.55,693.37,1.07071673]
[1735577322032,0.91807783,694.55,693.34,1.35917549]
[1735577322331,1.50437154,694.69,693.34,1.35917549]
[1735577322525,0.26512897,694.68,693.34,1.35917549]
[1735577323026,0.26512897,694.68,693.36,1.07071673]
[1735577323230,0.91552591,694.54,693.36,1.07071673]
[1735577324030,0.91552591,694.54,693.37,1.07071673]
[1735577324229,1.50437154,694.69,693.37,1.07071673]
[1735577324432,0.26512016,694.68,693.37,1.07071673]
[1735577324628,0.2651286,694.67,693.37,1.07071673]
[1735577324833,0.2651286,694.66,693.37,1.07071673]
[1735577325033,0.91547509,694.65,693.37,1.07071673]
[1735577325227,0.26512352,694.64,693.39,1.07071673]
[1735577325433,1.18059861,694.64,693.39,1.07071673]
[1735577325632,0.91547509,694.63,693.39,1.07071673]
[1735577326034,1.18059861,694.62,693.39,1.07071673]
[1735577326335,0.91547509,694.62,693.39,1.07071673]
[1735577326528,0.91547509,694.61,693.39,1.07071673]
[1735577326729,2.42002549,694.61,693.39,1.07071673]
[1735577326932,0.91547509,694.6,693.39,1.07071673]
[1735577327135,0.91547509,694.59,693.39,1.07071673]
[1735577327335,1.18061645,694.58,693.39,1.07071673]
[1735577327630,1.18061645,694.57,693.39,1.07071673]
[1735577327835,1.18063409,694.56,693.39,1.07071673]
[1735577328036,0.265159,694.55,693.41,1.07071673]
[1735577328229,1.18063409,694.55,693.41,1.07071673]
[1735577328429,0.265159,694.54,693.41,1.07071673]
[1735577328630,1.18063409,694.54,693.41,1.07071673]
[1735577328835,0.91547509,694.54,693.41,1.07071673]
[1735577329034,0.91547509,694.53,693.41,1.07071673]
[1735577329239,0.91547509,694.52,693.34,0.28845876]
[1735577329636,0.91547509,694.51,693.34,0.28845876]
[1735577329836,0.91547509,694.5,693.34,0.28845876]
[1735577330237,0.91547509,694.49,693.34,0.28845876]
[1735577330633,0.91547509,694.48,693.34,0.28845876]
[1735577331040,0.91547509,694.47,693.34,0.28845876]
[1735577331240,0.91547509,694.46,693.34,0.28845876]
[1735577331634,0.91547509,694.45,693.34,0.28845876]
[1735577331836,0.91547509,694.44,693.34,0.28845876]
[1735577332435,0.91547509,694.43,693.34,0.28845876]
[1735577332633,0.91547509,694.42,693.34,0.28845876]
[1735577332838,0.91547509,694.41,693.34,0.28845876]
[1735577333338,0.91547509,694.4,693.34,0.28845876]
[1735577333539,0.91547509,694.39,693.34,0.28845876]
[1735577333940,0.91547509,694.38,693.34,0.28845876]
[1735577334240,0.91547509,694.37,693.34,0.28845876]
[1735577334440,0.91547509,694.36,693.34,0.28845876]
[1735577334739,0.91547509,694.35,693.34,0.28845876]
[1735577335141,0.91547509,694.34,693.34,0.28845876]
[1735577335438,0.91547509,694.33,693.34,0.28845876]
[1735577335640,0.91547509,694.33,693.25,1.07071673]
[1735577335841,0.91547509,694.32,693.25,1.07071673]
[1735577336237,0.91547509,694.31,693.25,1.07071673]
[1735577336433,0.91547509,694.3,693.25,1.07071673]
[1735577336635,0.91547509,694.29,693.31,1.07071673]
[1735577337042,2.42048639,694.28,693.31,1.07071673]
[1735577337434,0.91547509,694.27,693.2,1.07071673]
[1735577337940,0.91547509,694.26,693.2,1.07071673]
[1735577338342,1.5050113,694.28,693.19,1.07071673]
[1735577338343,0.91547509,694.25,693.19,1.07071673]
[1735577338643,0.91547509,694.24,693.19,1.07071673]
[1735577339040,1.5050113,694.28,693.19,1.07071673]
[1735577339041,0.91547509,694.23,693.19,1.07071673]
[1735577339637,0.91547509,694.22,693.23,1.07071673]
[1735577340040,0.91547509,694.21,693.23,1.07071673]
[1735577340442,0.91547509,694.2,693.23,1.07071673]
[1735577340836,0.91547509,694.19,693.23,1.07071673]
[1735577341241,0.91547509,694.18,693.23,1.07071673]
[1735577341442,0.91547509,694.17,693.23,1.07071673]
[1735577341840,0.91547509,694.16,693.23,1.07071673]
[1735577342244,0.91547509,694.16,693.17,1.07071673]
[1735577342441,0.91547509,694.15,693.17,1.07071673]
[1735577342648,0.91547509,694.14,693.17,1.07071673]
[1735577343036,1.5050113,694.28,693.17,1.07071673]
[1735577343037,0.91547509,694.13,693.17,1.07071673]
[1735577343242,1.5050113,694.28,693.11,1.07071673]
[1735577343441,0.91293619,694.12,693.11,1.07071673]
[1735577343839,0.91293619,694.11,693.11,1.07071673]
[1735577344045,0.91293619,694.1,693.11,1.07071673]
[1735577344340,0.91293619,694.09,693.09,1.07071673]
[1735577344740,0.91293619,694.08,693.09,1.07071673]
[1735577344944,1.5050113,694.28,693.09,1.07071673]
[1735577345140,1.5050113,694.28,684.76,8.52824573]
[1735577345340,0.91319307,694.27,691.72,0.28913433]
[1735577345544,0.91319307,694.26,691.72,0.28913433]
[1735577345940,0.91319307,694.25,691.72,0.28913433]
[1735577346247,0.91319307,694.24,691.72,0.28913433]
[1735577346548,0.91319307,694.23,691.72,0.28913433]
[1735577346747,0.91319307,694.22,691.72,0.28913433]
[1735577346944,1.5050113,694.28,691.72,0.28913433]
[1735577346945,0.91319307,694.21,691.72,0.28913433]
[1735577347145,0.91319307,694.2,693.2,1.07432156]
[1735577347341,2.41920305,694.2,693.2,1.07432156]
[1735577347543,0.91319307,694.19,693.2,1.07432156]
[1735577347744,0.91319307,694.18,693.2,1.07432156]
[1735577347942,0.91319307,694.17,693.2,1.07432156]
[1735577348344,0.91319307,694.16,693.2,1.07432156]
[1735577348545,0.91319307,694.15,693.13,1.07432156]
[1735577348941,0.91319307,694.14,693.13,1.07432156]
[1735577349343,0.91319307,694.13,693.13,1.07432156]
[1735577349751,0.91319307,694.12,693.13,1.07432156]
[1735577350048,0.91319307,694.11,693.13,1.07432156]
[1735577350248,0.91319307,694.1,693.16,1.07432156]
[1735577350646,0.91319307,694.09,693.16,1.07432156]
[1735577350946,0.91319307,694.08,693.16,1.07432156]
[1735577351345,0.91319307,694.08,692.95,1.07432156]
[1735577351346,0.91319307,694.07,693.19,1.07432156]
[1735577351543,0.91319307,694.06,693.19,1.07432156]
[1735577352148,0.91319307,694.19,693.19,1.07432156]
[1735577352543,0.91319307,694.19,693.32,1.07432156]
[1735577353653,0.91319307,694.19,693.1,1.07432156]
[1735577353654,0.91319307,694.19,693.4,1.07432156]
[1735577354655,0.91319307,694.18,693.42,1.07432156]
[1735577355155,0.91319307,694.17,693.42,1.07432156]
[1735577355358,0.91319307,694.16,693.42,1.07432156]
[1735577355551,0.91319307,694.15,693.42,1.07432156]
[1735577355756,0.91319307,694.14,693.42,1.07432156]